bitfinex/quotes_ETHUSD_20250720
["timestamp","ask_amount","ask_price","bid_price","bid_amount"]
[1753022638457,4.094,3744.1,3743.9,0.4302]
[1753022638665,0.1328,3744.3,3743.9,0.4302]
[1753022638877,4.094,3744.1,3743.9,0.4302]
[1753022639079,4.094,3744.1,3743.8,0.8184]
[1753022639506,2.80381151,3743.9,3743.8,0.8184]
[1753022639776,2.80381151,3743.9,3743.6,0.001]
[1753022639964,6.76510122,3743.8,3743.6,0.4429]
[1753022640345,2.69786519,3743.7,3743.6,0.001]
[1753022641189,3.24786519,3743.7,3743.6,0.001]
[1753022641591,4.4875542,3743.7,3743.6,1e-08]
[1753022641804,4.51426519,3743.7,3743.6,1e-08]
[1753022641992,12.80517631,3743.7,3743.6,1e-08]
[1753022642679,8.71117631,3743.7,3743.6,1e-08]
[1753022642879,12.80517631,3743.7,3743.6,1e-08]
[1753022643615,12.00397631,3743.7,3743.6,1e-08]
[1753022644470,12.00497631,3743.7,3743.6,1e-08]
[1753022644674,0.8181,3744.3,3743.6,1e-08]
[1753022644865,2.6711542,3743.7,3743.6,0.44190001]
[1753022645069,6.7651542,3743.7,3743.6,1e-08]
[1753022645369,4.094,3743.7,3743.6,0.44190001]
[1753022645569,7.3151542,3743.7,3743.6,1e-08]
[1753022645793,8.78264768,3743.7,3743.6,1e-08]
[1753022646916,8.31644768,3743.7,3743.6,1e-08]
[1753022647217,8.78264768,3743.7,3743.6,1e-08]
[1753022652222,4.22244768,3743.7,3743.6,1e-08]
[1753022652411,7.7803542,3743.7,3743.6,1e-08]
[1753022653605,10.7803542,3743.7,3743.6,1e-08]
[1753022654428,10.7823542,3743.7,3743.6,1e-08]
[1753022659237,6.2231542,3743.7,3743.6,1e-08]
[1753022659418,10.3171542,3743.7,3743.6,1.00000001]
[1753022659613,12.21060658,3743.7,3743.6,1.00000001]
[1753022661251,6.999111,3743.2,3743.1,0.42]
[1753022661451,6.22172513,3742.9,3742.8,0.001]
[1753022661764,11.11820587,3742.9,3742.8,1e-08]
[1753022661920,11.58440587,3742.9,3742.8,1e-08]
[1753022663036,7.02420587,3742.9,3742.8,1e-08]
[1753022663215,6.22172513,3742.9,3742.8,1e-08]
[1753022663422,10.31572513,3742.9,3742.8,1e-08]
[1753022664530,6.22172513,3742.9,3742.8,1e-08]
[1753022664738,6.22172513,3742.9,3742.8,0.44190001]
[1753022665076,7.31572513,3742.9,3742.8,0.44190001]
[1753022665233,2.67172513,3742.9,3742.8,0.44190001]
[1753022665442,6.76572513,3742.9,3742.8,0.44190001]
[1753022666652,7.31572513,3742.9,3742.8,1e-08]
[1753022666876,8.25946201,3742.9,3742.8,1e-08]
[1753022667074,8.72566201,3742.9,3742.8,1e-08]
[1753022667259,11.72566201,3742.9,3742.8,1e-08]
[1753022668131,12.52066201,3742.9,3742.8,1e-08]
[1753022669371,12.71917527,3742.9,3742.8,1e-08]
[1753022669870,12.71917527,3742.9,3742.1,1e-08]
[1753022669871,7.01722489,3742.2,3742.1,1e-08]
[1753022670075,11.11122489,3742.2,3742.1,1e-08]
[1753022670375,11.56962489,3742.2,3742.1,1e-08]
[1753022674845,10.31722489,3742.2,3742.1,1e-08]
[1753022676904,3.22258198,3741.7,3741.6,1e-08]
[1753022677194,10.93380109,3741.7,3741.6,1e-08]
[1753022677396,10.9070901,3741.7,3741.6,1e-08]
[1753022677546,10.31758198,3741.7,3741.6,1e-08]
[1753022679350,10.77598198,3741.7,3741.6,1e-08]
[1753022680782,10.31758198,3741.7,3741.6,1e-08]
[1753022681386,10.31758198,3741.7,3741.6,0.44610001]
[1753022682517,2.6724992,3741.9,3741.7,0.7687]
[1753022682518,2.6724935,3741.9,3741.7,0.7687]
[1753022682654,4.101,3741.8,3741.7,0.7687]
[1753022682850,6.7734599,3741.9,3741.7,0.7687]
[1753022683167,4.101,3741.9,3741.7,1.2148]
[1753022683369,4.101,3741.9,3741.7,0.7687]
[1753022683592,4.101,3741.9,3741.8,0.4461]
[1753022683947,6.77343913,3741.9,3741.8,0.4461]
[1753022684152,4.101,3741.9,3741.8,0.4461]
[1753022684485,4.1,3742.0,3741.9,0.7687]
[1753022684684,4.1,3742.3,3741.9,0.4461]
[1753022684874,4.1,3742.3,3742.0,1.2148]
[1753022685072,6.77220595,3742.3,3742.1,0.4461]
[1753022685275,4.1,3742.3,3742.2,0.4461]
[1753022685480,4.1,3742.4,3742.2,0.4461]
[1753022685675,6.77209503,3742.4,3742.0,0.7687]
[1753022685989,4.1,3742.4,3742.3,0.4461]
[1753022686190,9.53727207,3744.1,3742.4,0.7687]
[1753022686404,2.67168961,3743.0,3742.4,0.7687]
[1753022686610,4.11,3742.9,3742.4,0.38869061]
[1753022686824,4.11,3742.9,3742.5,1.2148]
[1753022687026,0.1328,3742.7,3742.6,0.4461]
[1753022687325,2.67138615,3743.4,3742.6,1.2697]
[1753022687478,0.1328,3743.0,3742.7,3.94155413]
[1753022687678,0.1328,3743.0,3742.9,0.8236]
[1753022688426,2.83116474,3743.0,3742.9,0.8236]
[1753022689489,2.80445375,3743.0,3742.9,1.2697]
[1753022690614,0.1328,3743.0,3742.9,1.2697]
[1753022691111,0.1328,3743.0,3742.6,0.4461]
[1753022691277,4.2418,3743.0,3742.4,0.8268]
[1753022691478,2.67201068,3742.5,3742.4,0.8268]
[1753022691705,6.78001068,3742.5,3742.4,0.8268]
[1753022691889,6.78001068,3742.5,3742.4,1.2729]
[1753022692505,4.108,3742.5,3742.4,1.2729]
[1753022693377,0.1336,3742.6,3742.4,1.2729]
[1753022693615,0.02671099,3743.6,3742.5,1.2359]
[1753022693819,0.1328,3743.3,3742.9,2.67167432]
[1753022694004,0.1328,3743.3,3743.0,1.2359]
[1753022694513,0.1328,3743.3,3743.1,0.4461]
[1753022695883,4.11,3743.6,3743.1,0.4461]
[1753022696217,0.1328,3743.5,3743.1,3.11767489]
[1753022696422,0.1328,3743.5,3743.0,3.46143038]
[1753022696624,0.1328,3743.5,3743.2,0.4461]
[1753022696809,0.002,3743.3,3743.2,0.4461]
[1753022697124,0.002,3743.3,3743.0,0.7898]
[1753022697487,0.002,3743.3,3743.1,0.4461]
[1753022698088,0.002,3743.3,3742.9,0.1328]
[1753022698424,0.002,3743.3,3743.2,0.7723]
[1753022699125,0.002,3743.3,3743.2,1.2031]
[1753022699988,0.002,3743.3,3743.2,1.1531]
[1753022700290,0.002,3743.3,3743.2,3.79194365]
[1753022700823,0.002,3743.3,3743.2,3.76522854]
[1753022701126,0.002,3743.3,3743.2,3.79194365]
[1753022701341,0.002,3743.3,3743.2,3.92474365]
[1753022701543,0.002,3743.3,3743.2,6.92474365]
[1753022701718,0.002,3743.3,3743.2,6.89802854]
[1753022702231,0.002,3743.3,3743.2,12.33473409]
[1753022702543,0.002,3743.3,3743.2,11.95393409]
[1753022702704,0.002,3743.3,3743.2,3.79571754]
[1753022702905,0.002,3743.3,3743.2,3.1328]
[1753022703147,0.002,3743.3,3743.2,0.9031]
[1753022704410,0.002,3743.3,3743.2,1.3339]
[1753022704811,2.67343963,3743.3,3743.2,0.1328]
[1753022705013,2.67343963,3743.3,3742.8,0.4308]
[1753022705314,2.671511,3743.2,3742.7,0.7703]
[1753022705550,2.67172774,3742.9,3742.7,1.2011]
[1753022705859,2.67167609,3743.0,3742.8,0.4308]
[1753022706021,2.67172513,3742.9,3742.8,0.4308]
[1753022707232,2.67174636,3742.9,3742.7,0.7703]
[1753022707437,2.67179651,3742.8,3742.7,1.2011]
[1753022707744,2.67196349,3742.6,3742.3,0.4308]
[1753022707945,2.67179651,3742.8,3742.0,0.8006]
[1753022707946,2.67214614,3742.4,3742.0,1.2314]
[1753022708245,2.67214614,3742.4,3742.1,0.4308]
[1753022708447,2.67202746,3742.5,3742.1,0.4308]
[1753022708655,2.67202746,3742.5,3742.0,0.8006]
[1753022708823,2.67202746,3742.5,3742.1,0.4308]
[1753022709158,2.67202746,3742.5,3742.2,0.4308]
[1753022709360,2.67202746,3742.5,3742.3,0.4308]
[1753022709519,2.67196059,3742.6,3742.4,0.4308]
[1753022709720,2.67170565,3743.0,3742.6,0.8006]
[1753022710037,2.67171139,3743.0,3742.7,0.4308]
[1753022710241,0.002,3743.3,3742.6,0.8006]
[1753022710242,2.67160296,3743.1,3742.6,0.8006]
[1753022710424,0.002,3743.3,3742.8,0.4308]
[1753022710630,2.6734439,3743.3,3742.8,0.4308]
[1753022710827,2.67153174,3743.2,3742.8,0.4308]
[1753022711354,2.67345878,3743.3,3742.9,0.8006]
[1753022711561,2.67152063,3743.2,3743.0,0.4308]
[1753022711756,2.67346041,3743.3,3742.9,0.8006]
[1753022712071,0.002,3743.3,3743.1,0.4308]
[1753022712356,2.67344009,3743.3,3743.2,0.4308]
[1753022712856,0.002,3743.3,3743.2,0.4308]
[1753022713553,0.002,3743.3,3743.2,1.09093919]
[1753022713921,0.002,3743.3,3743.2,4.57545019]
[1753022714119,0.002,3743.3,3743.2,1.90393919]
[1753022715326,0.002,3743.3,3743.2,1.3766]
[1753022716135,0.002,3743.3,3743.2,0.9458]
[1753022718458,0.002,3743.3,3743.2,0.1328]
[1753022718660,2.67343963,3743.3,3742.9,0.813]
[1753022718958,2.671511,3743.2,3743.1,0.001]
[1753022719177,3.68738497,3743.2,3743.1,0.001]
[1753022719480,2.671511,3743.2,3743.1,0.001]
[1753022719778,2.67346678,3743.3,3743.1,0.001]
[1753022720107,2.671511,3743.2,3743.1,0.001]
[1753022720975,3.139611,3743.2,3743.1,0.001]
[1753022721380,3.950211,3743.2,3743.1,0.001]
[1753022721566,4.52692199,3743.2,3743.1,0.001]
[1753022721748,5.9249984,3743.2,3743.1,0.001]
[1753022721925,5.89828741,3743.2,3743.1,0.001]
[1753022722327,8.89828741,3743.2,3743.1,0.001]
[1753022728288,2.67201068,3742.5,3742.4,0.001]
[1753022728493,6.80672167,3742.5,3742.4,0.001]
[1753022728692,8.83306739,3742.5,3742.4,0.001]
[1753022734013,4.72506739,3742.5,3742.4,0.001]
[1753022734212,0.8148,3743.0,3742.4,0.4604]
[1753022734400,2.80561068,3742.5,3742.4,0.001]
[1753022735997,0.1336,3742.5,3742.4,0.001]
[1753022736211,2.80561068,3742.5,3742.4,0.001]
[1753022736408,0.1336,3742.5,3742.4,0.001]
[1753022736805,2.80561068,3742.5,3742.4,0.001]
[1753022737119,0.1336,3742.5,3742.4,0.001]
[1753022738796,2.80561068,3742.5,3742.4,0.001]
[1753022739397,3.7903725,3742.5,3742.4,0.001]
[1753022739598,4.2246725,3742.5,3742.4,0.001]
[1753022740719,3.7903725,3742.5,3742.4,0.001]
[1753022741599,4.2246725,3742.5,3742.4,0.001]
[1753022741929,4.7746725,3742.5,3742.4,0.001]
[1753022742124,4.74796151,3742.5,3742.4,0.001]
[1753022742637,4.7746725,3742.5,3742.4,0.001]
[1753022744016,4.74796151,3742.5,3742.4,0.001]
[1753022744213,4.67795151,3742.5,3742.4,0.001]
[1753022745240,4.7046625,3742.5,3742.4,0.001]
[1753022746220,4.67795151,3742.5,3742.4,0.001]
[1753022746813,4.2703625,3742.5,3742.4,0.001]
[1753022747150,4.7046625,3742.5,3742.4,0.001]
[1753022751251,7.7046625,3742.5,3742.4,0.001]
[1753022751450,7.67795151,3742.5,3742.4,0.001]
[1753022751661,8.50005151,3742.5,3742.4,0.001]
[1753022754761,8.50005151,3742.5,3742.4,1e-08]
[1753022758268,2.67286771,3741.3,3741.2,0.30712802]
[1753022758428,5.82804083,3742.5,3741.2,0.30712802]
[1753022758429,2.67277725,3741.5,3741.2,0.30712802]
[1753022758629,2.80637725,3741.5,3741.2,0.30712802]
[1753022758958,2.67281104,3741.4,3741.2,0.30712802]
[1753022759474,2.67281104,3741.4,3740.8,2.67320866]
[1753022760476,0.1336,3741.5,3741.2,0.4628]
[1753022760645,2.80633035,3741.5,3741.3,0.4628]
[1753022760853,2.80633035,3741.5,3741.4,0.4628]
[1753022761458,2.80633035,3741.5,3741.4,1.2371]
[1753022762088,0.1336,3741.5,3741.4,1.2371]
[1753022762391,0.1336,3741.5,3741.4,1.64346978]
[1753022762593,2.67227559,3742.2,3741.5,3.48157552]
[1753022762758,0.1336,3742.0,3741.6,0.4628]
[1753022764671,0.1336,3742.0,3741.6,3.13542728]
[1753022764883,0.1336,3742.0,3741.7,0.71838067]
[1753022765104,0.1336,3742.0,3741.7,1.18118067]
[1753022765252,0.1336,3742.0,3741.5,0.8089]
[1753022765444,0.1336,3742.0,3741.8,0.4628]
[1753022765445,2.80597186,3742.0,3741.8,0.4628]
[1753022766682,0.1336,3742.0,3741.5,3.48161851]
[1753022766979,2.80596828,3742.0,3741.8,0.4628]
[1753022767178,0.1336,3742.0,3741.6,0.7974]
[1753022767483,2.80597338,3742.0,3741.9,0.4628]
[1753022767680,2.67258137,3741.8,3741.6,0.7974]
[1753022767884,0.1336,3741.7,3741.6,0.7974]
[1753022768990,0.1336,3741.7,3741.6,1.2602]
[1753022769808,0.1336,3741.7,3741.6,3.93285341]
[1753022769975,0.1336,3742.0,3741.6,4.32613875]
[1753022770172,0.1336,3742.0,3741.8,2.67244187]
[1753022770488,0.1336,3742.0,3741.8,2.67251055]
[1753022770688,0.1336,3742.0,3741.9,0.4628]
[1753022771256,0.1336,3742.0,3741.9,3.13523913]
[1753022771511,4.2326,3742.5,3742.0,2.67236771]
[1753022771658,4.2326,3742.5,3742.0,3.13516771]
[1753022771854,2.80761472,3742.5,3741.9,4.16967241]
[1753022772233,2.67212649,3742.4,3741.9,1.49724833]
[1753022772360,2.80762892,3742.5,3741.9,4.16963492]
[1753022772740,0.1336,3742.2,3741.9,1.49724833]
[1753022773212,0.1336,3742.2,3741.9,4.16967362]
[1753022773356,0.1336,3742.2,3741.9,1.49724833]
[1753022773556,0.1336,3742.2,3741.8,0.7571]
[1753022773998,0.1336,3742.2,3741.8,3.42960369]
[1753022774306,0.1336,3742.2,3741.8,0.7571]
[1753022774506,2.80588395,3742.2,3741.8,0.7571]
[1753022774654,2.67236461,3742.1,3741.8,0.7571]
[1753022775502,0.4473,3742.1,3741.6,0.8907]
[1753022775654,0.1336,3742.2,3741.6,1.38937]
[1753022775860,0.1336,3742.2,3741.6,1.66297]
[1753022776060,0.1336,3742.2,3741.7,2.67253554]
[1753022776752,0.1336,3742.2,3741.8,2.67249992]
[1753022776956,0.1336,3742.2,3742.1,2.6722963]
[1753022777097,4.098,3742.5,3742.2,2.67222132]
[1753022777450,0.002,3742.5,3742.3,2.67215348]
[1753022777645,0.002,3742.5,3742.2,2.80580946]
[1753022777795,0.002,3742.5,3742.2,0.1336]
[1753022778003,0.002,3742.5,3742.1,0.7571]
[1753022778247,0.1356,3742.5,3741.9,5.0097]
[1753022778543,0.4473,3742.4,3741.9,5.0097]
[1753022779143,0.1356,3742.5,3741.9,5.0097]
[1753022779315,0.1356,3742.5,3742.0,2.67236303]
[1753022779514,0.1356,3742.5,3741.9,7.68211387]
[1753022780010,2.67212663,3742.4,3741.9,0.9137]
[1753022780200,0.1356,3742.5,3741.9,0.7801]
[1753022780201,0.1336,3742.1,3741.9,0.7801]
[1753022781328,0.4473,3742.0,3741.6,9.5961]
[1753022781528,3.11967025,3742.0,3741.6,9.5961]
[1753022781735,3.11967025,3742.0,3741.6,5.5001]
[1753022782039,3.11967025,3742.0,3741.6,4.8761]
[1753022782244,3.11968841,3742.0,3741.6,4.8761]
[1753022782636,2.80605769,3741.9,3741.6,4.096]
[1753022782815,2.67251935,3741.8,3741.3,0.7553]
[1753022783016,2.67251935,3741.8,3741.6,4.096]
[1753022783219,0.5809,3741.9,3741.6,4.096]
[1753022783525,2.67252408,3741.8,3741.6,4.096]
[1753022783714,2.80605988,3741.9,3741.6,4.096]
[1753022784210,2.67258198,3741.7,3741.6,4.096]
[1753022784414,0.1336,3741.9,3741.6,4.096]
[1753022784844,0.1336,3741.9,3741.6,6.76864507]
[1753022785053,0.1336,3741.9,3741.6,5.38937386]
[1753022785347,0.1336,3741.9,3741.6,5.11577386]
[1753022785552,0.1336,3741.9,3741.6,7.78840593]
[1753022785755,0.1336,3741.9,3741.6,4.096]
[1753022786160,0.1336,3741.9,3741.6,6.76864811]
[1753022786458,0.1336,3741.9,3741.6,4.096]
[1753022786948,0.1336,3741.9,3741.6,6.76865306]
[1753022787121,0.1336,3741.9,3741.6,4.096]
[1753022787321,0.1336,3741.9,3741.6,6.76863283]
[1753022787561,0.1336,3741.9,3741.6,4.096]
[1753022787738,0.1336,3741.9,3741.7,4.096]
[1753022788348,0.1336,3741.9,3741.7,6.7685814]
[1753022788544,0.1336,3741.9,3741.7,4.096]
[1753022788744,0.1336,3741.9,3741.7,6.76856429]
[1753022788943,0.1336,3741.9,3741.7,4.096]
[1753022789144,0.1336,3741.9,3741.8,3.50391055]
[1753022789333,0.1336,3741.9,3741.8,3.77751055]
[1753022789528,0.002,3742.1,3742.0,2.67236771]
[1753022789819,0.002,3742.1,3742.0,6.76836771]
[1753022790252,0.002,3742.1,3742.0,4.096]
[1753022790449,0.8196,3742.1,3741.8,0.1336]
[1753022790622,0.4612,3742.1,3741.8,0.1336]
[1753022791026,0.002,3742.1,3741.6,2.67262736]
[1753022791248,0.5948,3742.1,3741.6,2.67262736]
[1753022792654,0.1356,3742.1,3741.6,2.67262736]
[1753022793058,2.80791475,3742.1,3741.5,7.73369825]
[1753022793226,3.26711475,3742.1,3741.5,7.73369825]
[1753022793955,0.5948,3742.1,3741.5,7.73369825]
[1753022794163,0.5948,3742.1,3741.6,4.096]
[1753022794558,0.5948,3742.1,3741.5,0.965]
[1753022794774,0.5948,3742.1,3741.7,4.096]
[1753022794775,0.4592,3742.0,3741.7,4.096]
[1753022795144,0.1356,3742.1,3741.7,6.76853833]
[1753022795351,0.1356,3742.1,3741.8,2.67245435]
[1753022795555,0.1356,3742.1,3741.7,6.76855433]
[1753022795975,0.1356,3742.1,3741.8,2.67249359]
[1753022796577,0.002,3742.1,3741.8,1.31422095]
[1753022796872,0.002,3742.1,3742.0,6.91733839]
[1753022797038,0.002,3742.1,3742.0,11.14693839]
[1753022797241,0.002,3742.1,3742.0,11.42053839]
[1753022797455,0.12015299,3743.0,3742.6,2.67187092]
[1753022797655,0.12015299,3743.0,3742.6,2.67193929]
[1753022797854,0.12015299,3743.0,3742.5,6.76799459]
[1753022798072,0.12015299,3743.0,3742.6,2.6719179]
[1753022798249,0.12015299,3743.0,3742.5,6.76796272]
[1753022798759,0.12015299,3743.0,3742.7,2.67186424]
[1753022798956,0.12015299,3743.0,3742.6,2.67191326]
[1753022799172,0.12015299,3743.0,3742.5,6.7679808]
[1753022799372,0.12015299,3743.0,3742.5,4.096]
[1753022799561,0.12015299,3743.0,3742.7,2.6718429]
[1753022799871,0.12015299,3743.0,3742.6,0.8175]
[1753022800774,0.12015299,3743.0,3742.6,3.48943259]
[1753022801175,0.12015299,3743.0,3742.6,0.8175]
[1753022801379,0.12015299,3743.0,3742.7,2.67185745]
[1753022801682,0.12015299,3743.0,3742.7,2.6718659]
[1753022802378,0.12015299,3743.0,3742.6,3.48942248]
[1753022803980,0.12015299,3743.0,3742.7,2.67186214]
[1753022804786,0.12015299,3743.0,3742.6,0.8175]
[1753022805076,0.57935299,3743.0,3742.6,3.48938711]
[1753022805256,0.57935299,3743.0,3742.6,2.67188711]
[1753022805948,0.57935299,3743.0,3742.5,6.76799181]
[1753022806143,0.57935299,3743.0,3742.6,2.67192695]
[1753022806860,0.57935299,3743.0,3742.3,3.90228966]
[1753022807055,0.57935299,3743.0,3742.5,2.67195454]
[1753022807460,0.57935299,3743.0,3742.6,2.67192591]
[1753022807663,0.002,3743.3,3742.7,4.094]
[1753022807840,0.1348,3743.3,3742.7,4.094]
[1753022808046,0.1348,3743.3,3742.7,6.76585615]
[1753022808248,0.1348,3743.3,3743.0,2.67164017]
[1753022808776,0.1348,3743.3,3742.8,2.67179651]
[1753022808975,2.80626135,3743.3,3742.7,6.76585246]
[1753022809548,0.1348,3743.3,3742.7,4.094]
[1753022809883,0.1348,3743.3,3742.8,2.67179651]
[1753022810288,0.1348,3743.3,3743.0,2.6716177]
[1753022810463,0.1348,3743.3,3742.9,6.76569527]
[1753022810848,0.1348,3743.3,3743.0,2.67165143]
[1753022812087,0.1348,3743.3,3743.0,2.67165375]
[1753022812290,0.1348,3743.3,3742.9,6.76569977]
[1753022812804,0.1348,3743.3,3743.1,2.67156772]
[1753022813090,0.1348,3743.3,3743.2,2.671511]
[1753022813448,0.002,3743.3,3743.2,2.671511]
[1753022814579,0.002,3743.3,3743.1,2.67155888]
[1753022814764,0.002,3743.3,3743.2,2.671511]
[1753022814961,0.002,3743.3,3743.2,6.765511]
[1753022815161,0.002,3743.3,3743.2,8.1011442]
[1753022815463,0.002,3743.3,3743.2,8.2339442]
[1753022815886,0.002,3743.3,3743.2,7.9603442]
[1753022816253,0.002,3743.3,3743.2,9.0107442]
[1753022816573,0.002,3743.3,3743.2,16.7307442]
[1753022816753,1e-08,3743.3,3743.2,16.7297442]
[1753022817090,1e-08,3743.3,3743.2,16.86297274]
[1753022817253,0.002,3743.8,3743.7,2.6711542]
[1753022817254,1e-08,3743.8,3743.7,2.6711542]
[1753022817453,1e-08,3743.9,3743.8,6.46488285]
[1753022817655,1e-08,3744.1,3744.0,6.46474017]
[1753022817891,1e-08,3744.1,3744.0,14.17791085]
[1753022818092,1e-08,3744.1,3744.0,14.45151085]
[1753022820475,1e-08,3744.1,3744.0,14.45251085]
[1753022820671,1e-08,3744.1,3744.0,16.57524098]
[1753022820884,1e-08,3744.1,3744.0,6.04933013]
[1753022821085,1e-08,3744.1,3744.0,4.2278]
[1753022821266,1e-08,3744.1,3744.0,0.1328]
[1753022821466,1e-08,3744.1,3744.0,6.90074017]
[1753022821666,1e-08,3744.1,3744.0,11.45551085]
[1753022822208,1e-08,3744.1,3744.0,14.45551085]
[1753022822388,1e-08,3744.1,3744.0,16.16816946]
[1753022824585,1e-08,3744.5,3744.4,2.67065484]
[1753022824789,1e-08,3744.5,3744.4,11.01352552]
[1753022824994,1e-08,3744.5,3744.4,11.41992552]
[1753022825203,1e-08,3744.5,3744.4,7.32092552]
[1753022825378,1e-08,3744.5,3744.4,12.98617914]
[1753022826498,1e-08,3744.5,3744.4,9.22520846]
[1753022827690,1e-08,3744.5,3744.4,9.49880846]
[1753022827886,1e-08,3744.5,3744.4,12.22420846]
[1753022828089,1e-08,3744.5,3744.4,8.12620846]
[1753022828406,1e-08,3744.5,3744.4,9.90145484]
[1753022828696,0.45190001,3744.5,3744.4,4.2308]
[1753022829101,0.45190001,3744.5,3744.4,4.098]
[1753022829706,0.45190001,3744.5,3743.7,3.43539635]
[1753022829869,3.12253088,3744.5,3744.0,0.1328]
[1753022830074,3.12255666,3744.4,3744.1,4.098]
[1753022830293,2.67065666,3744.4,3744.1,4.098]
[1753022830492,0.4519,3744.3,3744.1,4.098]
[1753022830700,0.4519,3744.2,3744.1,4.098]
[1753022831408,2.6706679,3744.4,3744.1,4.098]
[1753022831604,1e-08,3744.5,3744.1,4.098]
[1753022832303,1e-08,3744.5,3744.3,2.67067912]
[1753022832501,1e-08,3744.5,3744.4,6.90045484]
[1753022832707,1e-08,3744.5,3744.4,11.14292552]
[1753022832999,1e-08,3744.5,3744.4,6.55855484]
[1753022833201,1e-08,3744.5,3744.4,10.65755484]
[1753022833403,1e-08,3744.5,3744.4,12.43550298]
[1753022833606,1e-08,3744.5,3744.4,0.1328]
[1753022833931,0.45190001,3744.5,3744.4,0.1328]
[1753022834227,3.12252688,3744.5,3744.0,0.1328]
[1753022834401,3.12255484,3744.4,3744.1,4.103]
[1753022834699,0.4519,3744.4,3744.0,4.2358]
[1753022834906,0.4519,3744.3,3744.0,4.2358]
[1753022835312,0.4519,3744.2,3744.0,4.2358]
[1753022835599,0.4519,3744.1,3744.0,4.2358]
[1753022835906,0.4519,3744.1,3744.0,0.1328]
[1753022836105,1.2512,3744.1,3744.0,4.102]
[1753022836694,2.67094755,3744.0,3743.1,2.67156762]
[1753022836891,2.80393335,3743.8,3743.2,4.2348]
[1753022837093,1.2454,3743.7,3743.3,4.102]
[1753022837290,0.4519,3743.6,3743.3,4.102]
[1753022837791,0.1328,3743.8,3743.3,6.77341233]
[1753022838109,0.1328,3743.8,3743.3,7.73118828]
[1753022838297,0.1328,3743.8,3743.3,7.73120117]
[1753022838805,0.1328,3743.8,3743.3,5.05977595]
[1753022839009,0.4519,3743.7,3743.3,5.05977595]
[1753022839183,0.1328,3743.8,3743.3,5.05977595]
[1753022839383,0.4519,3743.6,3743.3,5.05977595]
[1753022840003,0.1328,3743.8,3743.3,5.05977595]
[1753022840308,0.5847,3743.8,3743.3,5.05977595]
[1753022840536,0.1328,3743.8,3743.3,5.05977595]
[1753022840713,0.4519,3743.7,3743.3,5.05977595]
[1753022841318,0.1328,3743.8,3743.3,5.05977595]
[1753022841319,0.1328,3743.8,3743.4,0.78640827]
[1753022841481,1.2454,3744.2,3743.6,0.1328]
[1753022841682,1.2454,3744.2,3743.7,4.101]
[1753022841991,2.67239018,3744.8,3744.0,0.1328]
[1753022841992,0.79350001,3744.5,3744.0,0.1328]
[1753022842197,0.79350001,3744.5,3744.1,4.101]
[1753022842403,1e-08,3744.5,3744.4,2.80345484]
[1753022842600,1e-08,3744.5,3744.4,6.90645484]
[1753022842797,1e-08,3744.5,3744.4,4.2358]
[1753022843004,1e-08,3744.5,3744.4,6.90645484]
[1753022843195,1e-08,3744.5,3744.4,7.94258963]
[1753022843913,1e-08,3744.5,3744.4,8.21618963]
[1753022844290,1e-08,3744.5,3744.4,11.21618963]
[1753022844886,1e-08,3744.5,3744.4,10.94458963]
[1753022847319,1e-08,3744.5,3744.4,14.70556031]
[1753022848087,1e-08,3744.5,3744.4,6.83958963]
[1753022848289,1e-08,3744.5,3744.4,10.94358963]
[1753022848736,1e-08,3744.5,3744.4,14.70456031]
[1753022849028,1e-08,3744.5,3744.4,15.49246031]
[1753022849391,1e-08,3744.5,3744.4,16.10846031]
[1753022849585,1e-08,3744.5,3744.4,19.93886031]
[1753022850018,1e-08,3744.5,3744.4,15.21886031]
[1753022850413,1e-08,3744.5,3744.4,15.49246031]
[1753022851630,1e-08,3744.5,3744.4,15.49146031]
[1753022851843,1e-08,3744.5,3744.4,11.38846031]
[1753022852350,1e-08,3744.5,3744.4,11.72948963]
[1753022852852,1e-08,3744.5,3744.4,7.62748963]
[1753022853053,1e-08,3744.5,3744.4,11.72848963]
[1753022853740,1e-08,3744.5,3744.4,12.00208963]
[1753022854258,1e-08,3744.5,3744.4,7.90108963]
[1753022854463,1e-08,3744.5,3744.4,12.00308963]
[1753022854930,1e-08,3744.5,3744.4,11.72948963]
[1753022856162,1e-08,3744.5,3744.4,11.72648963]
[1753022856946,0.46390001,3744.5,3744.0,0.69315944]
[1753022857150,0.4639,3744.4,3744.2,2.67074526]
[1753022857363,1e-08,3744.5,3744.2,2.6707975]
[1753022857563,0.4639,3744.3,3744.2,2.6707975]
[1753022857758,0.4639,3744.3,3744.2,6.7737975]
[1753022858088,1e-08,3744.5,3744.2,7.71820879]
[1753022858261,0.002,3745.2,3744.4,2.67065484]
[1753022858454,0.002,3745.2,3744.5,4.12870583]
[1753022858651,0.002,3745.2,3744.5,0.02670583]
[1753022858845,0.002,3745.2,3745.0,2.67020374]
[1753022859046,0.002,3745.2,3745.1,4.104]
[1753022859250,0.002,3745.2,3745.1,6.77415567]
[1753022859993,0.002,3745.2,3744.7,2.67038167]
[1753022860178,0.002,3745.2,3744.2,1.71597055]
[1753022860179,0.4639,3745.1,3744.2,1.71597055]
[1753022860363,0.4639,3745.1,3744.5,2.67054036]
[1753022860567,0.4639,3745.1,3744.6,4.104]
[1753022861169,0.4639,3745.1,3744.6,6.77448718]
[1753022861376,0.4639,3745.1,3744.7,2.67043707]
[1753022861580,0.4639,3745.1,3744.8,4.104]
[1753022863003,0.4639,3745.1,3744.8,4.103]
[1753022863703,0.002,3745.2,3744.8,4.103]
[1753022864005,0.002,3745.2,3745.1,2.67015567]
[1753022864159,0.002,3745.2,3745.1,6.77415567]
[1753022864780,0.002,3745.2,3745.1,6.27415567]
[1753022865704,0.002,3745.2,3745.1,10.87932635]
[1753022866000,0.002,3745.2,3745.1,15.30201767]
[1753022866968,0.002,3745.3,3745.2,5.67008437]
[1753022867308,0.002,3745.7,3745.6,5.66979923]